[Event "World Women Teams Championship"]
[Site "Sitges, Spain"]
[Date "2021.09.27"]
[Round "1.1"]
[White "Kosteniuk Alexandra (CFR)"]
[Black "Matnadze Ana (SPA)"]
[Result "1-0"]
[TimeControl "40+10"]
[WhiteElo "2517"]
[BlackElo "2349"]

1. e4 {[%clk 00:45:14]} {[%emt 00:00:05]} d5 {[%clk 00:45:09]} {[%emt
00:00:11]} 2. exd5 {[%clk 00:45:18]} {[%emt 00:00:07]} Qxd5 {[%clk 00:45:17]}
{[%emt 00:00:02]} 3. Nc3 {[%clk 00:45:23]} {[%emt 00:00:05]} Qd8 {[%clk
00:45:23]} {[%emt 00:00:04]} 4. d4 {[%clk 00:44:57]} {[%emt 00:00:36]} c6
{[%clk 00:45:26]} {[%emt 00:00:07]} 5. Bc4 {[%clk 00:42:37]} {[%emt 00:02:30]}
g6 {[%clk 00:44:47]} {[%emt 00:00:49]} 6. Nf3 {[%clk 00:39:43]} {[%emt
00:03:04]} Bg7 {[%clk 00:44:00]} {[%emt 00:00:56]} 7. Ne5 {[%clk 00:35:11]}
{[%emt 00:04:43]} e6 {[%clk 00:37:51]} {[%emt 00:06:18]} 8. Ne4 {[%clk
00:32:31]} {[%emt 00:02:50]} Nf6 {[%clk 00:34:23]} {[%emt 00:03:39]} 9. Bg5
{[%clk 00:26:56]} {[%emt 00:05:44]} h6 {[%clk 00:30:29]} {[%emt 00:04:05]} 10.
Bxf6 {[%clk 00:23:56]} {[%emt 00:03:09]} Bxf6 {[%clk 00:30:36]} {[%emt
00:00:03]} 11. Qf3 {[%clk 00:23:01]} {[%emt 00:01:06]} Bxe5 {[%clk 00:29:01]}
{[%emt 00:01:45]} 12. dxe5 {[%clk 00:23:07]} {[%emt 00:00:04]} Qa5+ {[%clk
00:29:03]} {[%emt 00:00:08]} 13. Kf1 {[%clk 00:20:11]} {[%emt 00:03:06]} Qxe5
{[%clk 00:26:50]} {[%emt 00:02:23]} 14. Re1 {[%clk 00:18:15]} {[%emt 00:02:06]}
Qd4 {[%clk 00:22:55]} {[%emt 00:04:04]} 15. Qf4 {[%clk 00:08:51]} {[%emt
00:09:34]} Qxc4+ {[%clk 00:15:40]} {[%emt 00:07:25]} 16. Re2 {[%clk 00:08:56]}
{[%emt 00:00:06]} Qxa2 {[%clk 00:13:17]} {[%emt 00:02:32]} 17. Qe5 {[%clk
00:06:35]} {[%emt 00:02:31]} Nd7 {[%clk 00:06:20]} {[%emt 00:07:08]} 18. Qxh8+
{[%clk 00:06:29]} {[%emt 00:00:16]} Ke7 {[%clk 00:06:29]} 19. Qc3 {[%clk
00:05:01]} {[%emt 00:01:38]} b6 {[%clk 00:05:43]} {[%emt 00:00:57]} 20. Re1
{[%clk 00:05:02]} {[%emt 00:00:09]} c5 {[%clk 00:04:58]} {[%emt 00:00:55]} 21.
h4 {[%clk 00:04:46]} {[%emt 00:00:26]} Bb7 {[%clk 00:04:42]} {[%emt 00:00:25]}
22. Rh3 {[%clk 00:04:46]} {[%emt 00:00:10]} Rd8 {[%clk 00:02:52]} {[%emt
00:02:00]} 23. Rf3 {[%clk 00:03:43]} {[%emt 00:01:13]} e5 {[%clk 00:01:55]}
{[%emt 00:01:07]} 24. Rfe3 {[%clk 00:03:16]} {[%emt 00:00:37]} Qd5 {[%clk
00:01:52]} {[%emt 00:00:14]} 25. f3 {[%clk 00:03:19]} {[%emt 00:00:07]} f5
{[%clk 00:01:51]} {[%emt 00:00:11]} 26. Nf2 {[%clk 00:03:26]} {[%emt 00:00:03]}
Kf7 {[%clk 00:01:30]} {[%emt 00:00:31]} 27. Nd3 {[%clk 00:03:29]} {[%emt
00:00:07]} e4 {[%clk 00:00:56]} {[%emt 00:00:43]} 28. fxe4 {[%clk 00:03:27]}
{[%emt 00:00:13]} Qd4 {[%clk 00:01:05]} {[%emt 00:00:01]} 29. exf5 {[%clk
00:03:15]} {[%emt 00:00:22]} Kf6 {[%clk 00:00:15]} {[%emt 00:01:00]} 30. Qxd4+
{[%clk 00:03:12]} {[%emt 00:00:13]} cxd4 {[%clk 00:00:24]} 31. Re6+ {[%clk
00:03:19]} {[%emt 00:00:03]} Kxf5 {[%clk 00:00:30]} {[%emt 00:00:04]} 32. Rd6
{[%clk 00:03:28]} {[%emt 00:00:01]} Bc8 {[%clk 00:00:24]} {[%emt 00:00:15]} 33.
Rxd4 {[%clk 00:03:13]} {[%emt 00:00:25]} g5 {[%clk 00:00:23]} {[%emt 00:00:12]}
34. h5 {[%clk 00:03:04]} {[%emt 00:00:18]} Rf8 {[%clk 00:00:26]} {[%emt
00:00:08]} 35. Kg1 {[%clk 00:02:54]} {[%emt 00:00:20]} Nf6 {[%clk 00:00:34]}
{[%emt 00:00:01]} 36. Re5# {[%clk 00:03:02]} {[%emt 00:00:02]} 1-0

[Event "World Women Teams Championship"]
[Site "Sitges, Spain"]
[Date "2021.09.27"]
[Round "1.2"]
[White "Vega Gutierrez Sabrina (SPA)"]
[Black "Lagno Kateryna (CFR)"]
[Result "0-1"]
[TimeControl "40+10"]
[WhiteElo "2214"]
[BlackElo "2521"]

1. d4 {[%clk 00:45:16]} {[%emt 00:00:03]} Nf6 {[%clk 00:45:16]} {[%emt
00:00:05]} 2. c4 {[%clk 00:45:23]} {[%emt 00:00:02]} g6 {[%clk 00:45:23]}
{[%emt 00:00:03]} 3. Nc3 {[%clk 00:45:31]} {[%emt 00:00:02]} d5 {[%clk
00:45:31]} {[%emt 00:00:03]} 4. Nf3 {[%clk 00:45:35]} {[%emt 00:00:06]} Bg7
{[%clk 00:45:37]} {[%emt 00:00:03]} 5. Bg5 {[%clk 00:45:39]} {[%emt 00:00:06]}
Ne4 {[%clk 00:45:28]} {[%emt 00:00:19]} 6. Bf4 {[%clk 00:45:37]} {[%emt
00:00:11]} Nxc3 {[%clk 00:45:05]} {[%emt 00:00:34]} 7. bxc3 {[%clk 00:45:44]}
{[%emt 00:00:03]} c5 {[%clk 00:45:03]} {[%emt 00:00:12]} 8. e3 {[%clk
00:45:49]} {[%emt 00:00:05]} O-O {[%clk 00:44:52]} {[%emt 00:00:21]} 9. cxd5
{[%clk 00:45:53]} {[%emt 00:00:06]} cxd4 {[%clk 00:44:35]} {[%emt 00:00:27]} 10.
cxd4 {[%clk 00:45:59]} {[%emt 00:00:04]} Qxd5 {[%clk 00:44:42]} {[%emt
00:00:03]} 11. Be2 {[%clk 00:45:57]} {[%emt 00:00:13]} b6 {[%clk 00:44:46]}
{[%emt 00:00:06]} 12. O-O {[%clk 00:45:50]} {[%emt 00:00:16]} Bb7 {[%clk
00:44:49]} {[%emt 00:00:07]} 13. h4 {[%clk 00:43:36]} {[%emt 00:02:24]} Nd7
{[%clk 00:41:38]} {[%emt 00:03:21]} 14. h5 {[%clk 00:42:15]} {[%emt 00:01:31]}
gxh5 {[%clk 00:40:14]} {[%emt 00:01:34]} 15. Qa4 {[%clk 00:40:58]} {[%emt
00:01:27]} Nf6 {[%clk 00:36:57]} {[%emt 00:03:28]} 16. Rac1 {[%clk 00:39:14]}
{[%emt 00:01:53]} Qa5 {[%clk 00:25:09]} {[%emt 00:11:58]} 17. Qxa5 {[%clk
00:38:34]} {[%emt 00:00:51]} bxa5 {[%clk 00:25:18]} {[%emt 00:00:01]} 18. Rc7
{[%clk 00:35:58]} {[%emt 00:02:45]} Bd5 {[%clk 00:25:26]} {[%emt 00:00:02]} 19.
Bc4 {[%clk 00:20:02]} {[%emt 00:16:06]} Rfc8 {[%clk 00:23:39]} {[%emt
00:01:57]} 20. Ba6 {[%clk 00:15:14]} {[%emt 00:04:58]} Rxc7 {[%clk 00:23:10]}
{[%emt 00:00:39]} 21. Bxc7 {[%clk 00:15:21]} {[%emt 00:00:02]} Ne8 {[%clk
00:19:46]} {[%emt 00:03:34]} 22. Bxa5 {[%clk 00:14:50]} {[%emt 00:00:42]} Bxa2
{[%clk 00:19:52]} {[%emt 00:00:04]} 23. Rc1 {[%clk 00:13:45]} {[%emt 00:01:14]}
Rb8 {[%clk 00:17:59]} {[%emt 00:02:04]} 24. Rc5 {[%clk 00:13:44]} {[%emt
00:00:12]} e6 {[%clk 00:13:41]} {[%emt 00:04:28]} 25. Ne5 {[%clk 00:13:43]}
{[%emt 00:00:10]} Bf8 {[%clk 00:12:45]} {[%emt 00:01:06]} 26. Rc1 {[%clk
00:06:47]} {[%emt 00:07:07]} Nf6 {[%clk 00:10:58]} {[%emt 00:01:56]} 27. Ra1
{[%clk 00:01:56]} {[%emt 00:05:01]} Bd5 {[%clk 00:10:29]} {[%emt 00:00:40]} 28.
f3 {[%clk 00:00:48]} {[%emt 00:01:17]} Bh6 {[%clk 00:10:08]} {[%emt 00:00:31]}
29. Ra3 {[%clk 00:00:53]} {[%emt 00:00:05]} Rb1+ {[%clk 00:09:14]} {[%emt
00:01:04]} 30. Kf2 {[%clk 00:00:38]} {[%emt 00:00:25]} Rb2+ {[%clk 00:09:08]}
{[%emt 00:00:15]} 31. Be2 {[%clk 00:00:35]} {[%emt 00:00:14]} Rb3 {[%clk
00:03:54]} {[%emt 00:05:25]} 32. Rxb3 {[%clk 00:00:40]} {[%emt 00:00:04]} Bxb3
{[%clk 00:04:03]} {[%emt 00:00:01]} 33. Nc6 {[%clk 00:00:19]} {[%emt 00:00:31]}
Nd5 {[%clk 00:04:07]} {[%emt 00:00:06]} 34. Bd2 {[%clk 00:00:15]} {[%emt
00:00:14]} Nb6 {[%clk 00:02:57]} {[%emt 00:01:20]} 35. Nxa7 {[%clk 00:00:17]}
{[%emt 00:00:08]} Bc4 {[%clk 00:03:06]} {[%emt 00:00:02]} 36. Bxc4 {[%clk
00:00:13]} {[%emt 00:00:13]} Nxc4 {[%clk 00:03:15]} {[%emt 00:00:01]} 37. Bc1
{[%clk 00:00:22]} {[%emt 00:00:02]} Kg7 {[%clk 00:03:13]} {[%emt 00:00:11]} 38.
Nb5 {[%clk 00:00:20]} {[%emt 00:00:11]} Kg6 {[%clk 00:03:21]} {[%emt 00:00:03]}
39. Ke2 {[%clk 00:00:26]} {[%emt 00:00:05]} Nb6 {[%clk 00:02:53]} {[%emt
00:00:37]} 40. Nc3 {[%clk 00:00:32]} {[%emt 00:00:04]} Nc8 {[%clk 00:02:36]}
{[%emt 00:00:28]} 41. Kd3 {[%clk 00:00:31]} {[%emt 00:00:10]} Nd6 {[%clk
00:02:43]} {[%emt 00:00:03]} 42. Ne2 {[%clk 00:00:11]} {[%emt 00:00:31]} Nf5
{[%clk 00:02:47]} {[%emt 00:00:05]} 43. Bd2 {[%clk 00:00:11]} {[%emt 00:00:10]}
Nh4 {[%clk 00:02:49]} {[%emt 00:00:07]} 44. e4 {[%clk 00:00:11]} {[%emt
00:00:11]} Nxg2 {[%clk 00:02:49]} {[%emt 00:00:10]} 45. Bxh6 {[%clk 00:00:11]}
{[%emt 00:00:11]} Kxh6 {[%clk 00:02:57]} 46. d5 {[%clk 00:00:19]} exd5 {[%clk
00:02:56]} {[%emt 00:00:11]} 47. exd5 {[%clk 00:00:29]} {[%emt 00:00:02]} Kg6
{[%clk 00:03:02]} {[%emt 00:00:04]} 48. Ke4 {[%emt 00:00:47]} Kf6 {[%clk
00:02:41]} {[%emt 00:00:02]} 49. f4 {[%clk 00:00:16]} {[%emt 00:00:14]} h4
{[%clk 00:02:22]} {[%emt 00:00:30]} 50. Kf3 {[%clk 00:00:24]} {[%emt 00:00:01]}
h3 {[%clk 00:02:30]} {[%emt 00:00:02]} 51. Nc3 {[%emt 00:00:18]} Kf5 {[%clk
00:02:10]} {[%emt 00:00:28]} 52. Ne2 {[%clk 00:00:16]} {[%emt 00:00:12]} Kf6
{[%clk 00:01:41]} {[%emt 00:00:40]} 53. Kg3 {[%clk 00:00:18]} {[%emt 00:00:07]}
Ne3 {[%clk 00:01:31]} {[%emt 00:00:20]} 54. Nc3 {[%clk 00:00:26]} {[%emt
00:00:02]} Ke7 {[%clk 00:01:33]} {[%emt 00:00:08]} 55. Kxh3 {[%clk 00:00:22]}
{[%emt 00:00:14]} Kd6 {[%clk 00:01:43]} 56. Kh4 {[%clk 00:00:25]} {[%emt
00:00:08]} Nxd5 {[%clk 00:01:49]} {[%emt 00:00:03]} 57. Ne4+ {[%emt 00:00:03]}
Ke7 {[%clk 00:01:55]} {[%emt 00:00:03]} 58. f5 {[%emt 00:00:32]} Nf6 {[%clk
00:01:44]} {[%emt 00:00:19]} 59. Ng5 {[%clk 00:00:14]} {[%emt 00:00:09]} h6
{[%clk 00:01:51]} {[%emt 00:00:03]} 60. Nf3 {[%clk 00:00:15]} {[%emt 00:00:09]}
Kd6 {[%clk 00:01:55]} {[%emt 00:00:06]} 61. Kg3 {[%clk 00:00:19]} {[%emt
00:00:06]} Kd5 {[%clk 00:02:02]} {[%emt 00:00:03]} 62. Kf4 {[%clk 00:00:28]}
{[%emt 00:00:01]} Ne8 {[%clk 00:01:41]} {[%emt 00:00:31]} 63. Nh2 {[%clk
00:00:26]} {[%emt 00:00:13]} f6 {[%clk 00:01:33]} {[%emt 00:00:18]} 64. Ng4
{[%clk 00:00:20]} {[%emt 00:00:16]} h5 {[%clk 00:01:41]} {[%emt 00:00:01]} 65.
Ne3+ {[%clk 00:00:25]} {[%emt 00:00:05]} Kd4 {[%clk 00:01:49]} {[%emt
00:00:02]} 66. Nf1 {[%clk 00:00:20]} {[%emt 00:00:15]} Ng7 {[%clk 00:01:50]}
{[%emt 00:00:09]} 67. Nh2 {[%clk 00:00:12]} {[%emt 00:00:19]} Kd3 {[%clk
00:01:44]} {[%emt 00:00:15]} 68. Nf3 {[%clk 00:00:14]} {[%emt 00:00:08]} Ke2
{[%clk 00:01:50]} {[%emt 00:00:05]} 69. Nd4+ {[%clk 00:00:19]} {[%emt
00:00:04]} Kf2 {[%clk 00:01:59]} {[%emt 00:00:02]} 70. Ne6 {[%clk 00:00:21]}
{[%emt 00:00:07]} Ne8 {[%clk 00:02:00]} {[%emt 00:00:08]} 71. Nf8 {[%clk
00:00:14]} {[%emt 00:00:18]} Kg2 {[%clk 00:02:01]} {[%emt 00:00:09]} 72. Ng6
{[%clk 00:00:22]} {[%emt 00:00:02]} Kh3 {[%clk 00:02:07]} {[%emt 00:00:04]} 73.
Kf3 {[%clk 00:00:23]} {[%emt 00:00:10]} Nd6 {[%clk 00:02:00]} {[%emt 00:00:17]}
74. Kf4 {[%clk 00:00:28]} {[%emt 00:00:04]} h4 {[%clk 00:01:52]} {[%emt
00:00:18]} 75. Ne7 {[%clk 00:00:22]} {[%emt 00:00:16]} Kg2 {[%clk 00:01:59]}
{[%emt 00:00:04]} 76. Nd5 {[%clk 00:00:21]} {[%emt 00:00:10]} h3 {[%clk
00:02:00]} {[%emt 00:00:10]} 77. Ne3+ {[%clk 00:00:13]} {[%emt 00:00:18]} Kg1
{[%clk 00:02:08]} {[%emt 00:00:02]} 78. Ng4 {[%clk 00:00:12]} {[%emt 00:00:11]}
h2 {[%emt 00:00:08]} 0-1

[Event "World Women Teams Championship"]
[Site "Sitges, Spain"]
[Date "2021.09.27"]
[Round "1.3"]
[White "Shuvalova Polina (CFR)"]
[Black "Garcia Martin Marta (SPA)"]
[Result "1-0"]
[TimeControl "40+10"]
[WhiteElo "2383"]
[BlackElo "2097"]

1. e4 {[%clk 00:45:17]} {[%emt 00:00:03]} e5 {[%clk 00:45:17]} {[%emt
00:00:02]} 2. Nf3 {[%clk 00:45:20]} {[%emt 00:00:08]} Nc6 {[%clk 00:45:23]}
{[%emt 00:00:04]} 3. Bb5 {[%clk 00:45:18]} {[%emt 00:00:12]} a6 {[%clk
00:45:29]} {[%emt 00:00:04]} 4. Ba4 {[%clk 00:45:21]} {[%emt 00:00:07]} Nf6
{[%clk 00:45:35]} {[%emt 00:00:05]} 5. O-O {[%clk 00:45:23]} {[%emt 00:00:08]}
Be7 {[%clk 00:45:40]} {[%emt 00:00:05]} 6. Re1 {[%clk 00:45:21]} {[%emt
00:00:11]} b5 {[%clk 00:45:44]} {[%emt 00:00:05]} 7. Bb3 {[%clk 00:45:28]}
{[%emt 00:00:04]} d6 {[%clk 00:45:49]} {[%emt 00:00:05]} 8. c3 {[%clk
00:45:29]} {[%emt 00:00:09]} O-O {[%clk 00:45:53]} {[%emt 00:00:06]} 9. h3
{[%clk 00:45:36]} {[%emt 00:00:02]} h6 {[%clk 00:45:51]} {[%emt 00:00:13]} 10.
d4 {[%clk 00:44:37]} {[%emt 00:01:09]} Re8 {[%clk 00:45:40]} {[%emt 00:00:21]}
11. Nbd2 {[%clk 00:43:36]} {[%emt 00:01:11]} Bf8 {[%clk 00:45:34]} {[%emt
00:00:16]} 12. Bc2 {[%clk 00:42:03]} {[%emt 00:01:43]} Bb7 {[%clk 00:45:26]}
{[%emt 00:00:17]} 13. a3 {[%clk 00:41:26]} {[%emt 00:00:48]} Nb8 {[%clk
00:45:14]} {[%emt 00:00:22]} 14. b3 {[%clk 00:41:15]} {[%emt 00:00:22]} Nbd7
{[%clk 00:45:17]} {[%emt 00:00:06]} 15. Bb2 {[%clk 00:41:13]} {[%emt 00:00:11]}
c6 {[%clk 00:45:04]} {[%emt 00:00:24]} 16. Nf1 {[%clk 00:40:17]} {[%emt
00:01:06]} Qc7 {[%clk 00:42:54]} {[%emt 00:02:20]} 17. Ng3 {[%emt 00:03:03]}
Rad8 {[%clk 00:35:48]} {[%emt 00:04:48]} 18. dxe5 {[%clk 00:34:30]} {[%emt
00:05:33]} dxe5 {[%clk 00:33:09]} {[%emt 00:02:49]} 19. Qe2 {[%emt 00:01:04]}
Nc5 {[%clk 00:31:44]} {[%emt 00:00:37]} 20. c4 {[%clk 00:34:37]} {[%emt
00:00:06]} a5 {[%clk 00:29:15]} {[%emt 00:02:38]} 21. Rad1 {[%emt 00:02:33]}
Rxd1 {[%emt 00:01:59]} 22. Rxd1 {[%clk 00:32:42]} {[%emt 00:00:20]} b4 {[%clk
00:26:32]} {[%emt 00:00:27]} 23. axb4 {[%clk 00:32:36]} {[%emt 00:00:16]} axb4
{[%emt 00:01:56]} 24. Qd2 {[%clk 00:30:10]} {[%emt 00:00:41]} g6 {[%clk
00:24:12]} {[%emt 00:02:39]} 25. Kh2 {[%emt 00:06:06]} Bc8 {[%clk 00:20:31]}
{[%emt 00:00:16]} 26. Nxe5 {[%clk 00:25:58]} {[%emt 00:02:00]} Rxe5 {[%clk
00:15:34]} {[%emt 00:05:08]} 27. Qd8 {[%emt 00:05:21]} Qxd8 {[%clk 00:10:15]}
{[%emt 00:00:29]} 28. Rxd8 {[%emt 00:05:54]} Re6 {[%clk 00:04:11]} {[%emt
00:00:22]} 29. Rxc8 {[%clk 00:25:06]} {[%emt 00:00:58]} Ncxe4 {[%clk 00:04:11]}
{[%emt 00:00:11]} 30. Bxe4 Nxe4 {[%clk 00:04:19]} 31. Nxe4 {[%clk 00:24:30]}
{[%emt 00:00:02]} Rxe4 {[%emt 00:02:03]} 32. f3 {[%emt 00:01:23]} Re6 {[%clk
00:02:12]} {[%emt 00:01:19]} 33. Bd4 {[%clk 00:22:28]} {[%emt 00:00:04]} 1-0

[Event "World Women Teams Championship"]
[Site "Sitges, Spain"]
[Date "2021.09.27"]
[Round "1.4"]
[White "Calzetta Ruiz Monica (SPA)"]
[Black "Kashlinskaya Alina (CFR)"]
[Result "0-1"]
[TimeControl "40+10"]
[WhiteElo "2103"]
[BlackElo "2367"]

1. e4 {[%clk 00:45:17]} {[%emt 00:00:02]} e5 {[%clk 00:45:09]} {[%emt
00:00:02]} 2. Nf3 {[%clk 00:45:24]} {[%emt 00:00:03]} Nf6 {[%clk 00:45:26]}
{[%emt 00:00:02]} 3. Nxe5 {[%clk 00:45:28]} {[%emt 00:00:06]} d6 {[%clk
00:45:33]} {[%emt 00:00:03]} 4. Nf3 {[%clk 00:45:34]} {[%emt 00:00:03]} Nxe4
{[%emt 00:00:10]} 5. d4 {[%clk 00:45:29]} {[%emt 00:00:09]} d5 {[%emt
00:00:16]} 6. Bd3 {[%clk 00:45:18]} {[%emt 00:00:13]} Bd6 {[%clk 00:45:49]}
{[%emt 00:00:04]} 7. O-O {[%clk 00:45:14]} {[%emt 00:00:13]} O-O {[%clk
00:45:56]} {[%emt 00:00:03]} 8. c4 {[%clk 00:45:20]} {[%emt 00:00:04]} c6
{[%clk 00:46:00]} {[%emt 00:00:06]} 9. Qc2 {[%clk 00:45:23]} {[%emt 00:00:08]}
Na6 {[%clk 00:45:50]} {[%emt 00:00:20]} 10. a3 {[%emt 00:00:06]} Bg4 {[%emt
00:00:52]} 11. Ne5 {[%emt 00:02:55]} Bf5 {[%clk 00:42:16]} {[%emt 00:00:23]} 12.
b4 {[%emt 00:01:10]} f6 {[%clk 00:41:33]} {[%emt 00:00:07]} 13. Nf3 {[%clk
00:45:04]} {[%emt 00:00:12]} Bg6 {[%clk 00:41:16]} {[%emt 00:00:27]} 14. c5
{[%emt 00:01:09]} Bb8 {[%emt 00:05:40]} 15. Nh4 {[%clk 00:38:23]} {[%emt
00:03:18]} f5 {[%clk 00:37:43]} {[%emt 00:00:47]} 16. Nxg6 {[%emt 00:00:47]}
hxg6 {[%emt 00:01:17]} 17. Nc3 {[%emt 00:03:37]} Nc7 {[%emt 00:12:27]} 18. Ne2
{[%clk 00:23:49]} {[%emt 00:00:19]} Ne6 {[%emt 00:01:42]} 19. f3 {[%clk
00:15:39]} {[%emt 00:04:56]} N4g5 {[%clk 00:28:13]} 20. Ra2 {[%emt 00:09:12]}
Qf6 {[%emt 00:00:32]} 21. Be3 {[%clk 00:15:32]} {[%emt 00:00:05]} Bc7 {[%emt
00:02:14]} 22. b5 {[%emt 00:01:27]} Rae8 {[%clk 00:26:21]} {[%emt 00:00:17]} 23.
bxc6 {[%clk 00:13:01]} {[%emt 00:00:23]} bxc6 {[%emt 00:00:50]} 24. Qd2 {[%emt
00:08:05]} Nf7 {[%emt 00:02:07]} 25. Rb2 {[%clk 00:10:36]} {[%emt 00:00:08]}
Nxc5 {[%emt 00:01:31]} 26. dxc5 {[%clk 00:10:10]} {[%emt 00:00:05]} Rxe3 {[%emt
00:01:41]} 27. Qxe3 {[%clk 00:08:42]} {[%emt 00:00:04]} Qxb2 {[%emt 00:01:45]}
28. Nd4 {[%emt 00:04:52]} f4 {[%emt 00:00:15]} 29. Qf2 {[%emt 00:01:03]} Qxf2+
{[%clk 00:10:57]} {[%emt 00:00:59]} 30. Kxf2 {[%clk 00:07:02]} {[%emt
00:00:17]} Ne5 {[%clk 00:11:01]} {[%emt 00:00:07]} 31. Ba6 {[%emt 00:01:13]}
Rb8 {[%emt 00:02:13]} 32. Ne6 {[%emt 00:00:49]} Rb2+ {[%emt 00:00:29]} 33. Kg1
{[%clk 00:04:48]} {[%emt 00:00:01]} Ba5 {[%emt 00:00:55]} 34. Nxf4 {[%emt
00:01:18]} Bd2 {[%emt 00:01:21]} 35. Nd3 {[%clk 00:03:34]} {[%emt 00:00:07]}
Nxd3 {[%clk 00:07:41]} {[%emt 00:00:02]} 36. Bxd3 {[%clk 00:03:42]} {[%emt
00:00:01]} Be3+ {[%clk 00:07:49]} {[%emt 00:00:02]} 37. Kh1 {[%clk 00:03:51]}
{[%emt 00:00:01]} Kf7 {[%emt 00:01:08]} 38. g3 {[%emt 00:00:45]} Rb3 {[%emt
00:01:06]} 39. Ba6 {[%emt 00:01:11]} Bxc5 {[%emt 00:01:01]} 40. a4 {[%emt
00:00:25]} Be3 {[%clk 00:06:00]} {[%emt 00:00:07]} 41. Re1 {[%emt 00:00:36]}
Kf6 {[%emt 00:00:55]} 42. Rd1 {[%clk 00:00:20]} {[%emt 00:00:23]} Rb2 {[%clk
00:04:59]} {[%emt 00:00:34]} 43. Bc8 {[%emt 00:00:27]} d4 {[%clk 00:04:25]}
{[%emt 00:00:32]} 44. Bd7 {[%clk 00:00:17]} {[%emt 00:00:08]} c5 {[%clk
00:04:32]} {[%emt 00:00:03]} 45. Bb5 {[%emt 00:00:11]} Rxb5 {[%clk 00:03:28]}
{[%emt 00:01:04]} 46. axb5 {[%clk 00:00:34]} {[%emt 00:00:02]} c4 {[%emt
00:00:24]} 47. Ra1 {[%clk 00:00:13]} {[%emt 00:00:07]} c3 {[%clk 00:03:36]}
{[%emt 00:00:12]} 48. Rxa7 {[%emt 00:00:08]} c2 {[%clk 00:03:43]} {[%emt
00:00:01]} 49. Rc7 {[%emt 00:00:14]} d3 {[%clk 00:03:41]} {[%emt 00:00:02]} 50.
Kg2 {[%emt 00:00:15]} d2 {[%emt 00:00:29]} 0-1

[Event "World Women Teams Championship"]
[Site "Sitges, Spain"]
[Date "2021.09.27"]
[Round "1.5"]
[White "Sebag Marie (FRA)"]
[Black "Danielian Elina (ARM)"]
[Result "1-0"]
[TimeControl "40+10"]
[WhiteElo "2401"]
[BlackElo "2358"]

1. e4 {[%clk 00:45:17]} {[%emt 00:00:02]} c6 {[%clk 00:45:17]} {[%emt
00:00:03]} 2. d4 {[%clk 00:45:21]} {[%emt 00:00:06]} d5 {[%clk 00:45:25]}
{[%emt 00:00:02]} 3. e5 {[%clk 00:45:28]} {[%emt 00:00:04]} Bf5 {[%clk
00:45:33]} {[%emt 00:00:02]} 4. Nf3 {[%clk 00:45:35]} {[%emt 00:00:02]} e6
{[%clk 00:45:41]} {[%emt 00:00:03]} 5. Be2 {[%clk 00:45:44]} {[%emt 00:00:02]}
Nd7 {[%clk 00:45:45]} {[%emt 00:00:04]} 6. O-O {[%clk 00:45:50]} {[%emt
00:00:04]} h6 {[%clk 00:45:44]} {[%emt 00:00:12]} 7. Nbd2 {[%clk 00:45:56]}
{[%emt 00:00:04]} Ne7 {[%clk 00:45:51]} {[%emt 00:00:02]} 8. Re1 {[%clk
00:45:12]} {[%emt 00:00:54]} Bh7 {[%clk 00:41:19]} {[%emt 00:04:42]} 9. Nf1
{[%clk 00:44:53]} {[%emt 00:00:29]} Nf5 {[%clk 00:38:10]} {[%emt 00:03:19]} 10.
Bd3 {[%clk 00:44:41]} {[%emt 00:00:22]} c5 {[%emt 00:05:40]} 11. c3 {[%clk
00:41:09]} {[%emt 00:01:05]} c4 {[%clk 00:33:53]} {[%emt 00:01:35]} 12. Bc2
{[%clk 00:40:20]} {[%emt 00:00:58]} b5 {[%clk 00:33:31]} {[%emt 00:00:32]} 13.
Bd2 {[%emt 00:12:47]} a5 {[%emt 00:03:32]} 14. Qb1 {[%clk 00:33:40]} {[%emt
00:00:25]} Bg6 {[%emt 00:03:17]} 15. g3 {[%clk 00:27:22]} {[%emt 00:03:49]} Rb8
{[%clk 00:21:36]} {[%emt 00:02:02]} 16. Ne3 {[%clk 00:21:14]} {[%emt 00:06:19]}
Ne7 {[%clk 00:21:27]} {[%emt 00:00:18]} 17. Nh4 {[%emt 00:00:15]} Bxc2 {[%clk
00:20:17]} {[%emt 00:01:13]} 18. Qxc2 {[%clk 00:21:22]} {[%emt 00:00:06]} Nb6
{[%clk 00:18:55]} {[%emt 00:01:31]} 19. f4 {[%clk 00:14:33]} {[%emt 00:07:00]}
g6 {[%clk 00:17:38]} {[%emt 00:01:27]} 20. g4 {[%emt 00:09:57]} h5 {[%clk
00:08:26]} {[%emt 00:02:14]} 21. f5 {[%clk 00:11:55]} {[%emt 00:00:08]} gxf5
{[%clk 00:06:54]} {[%emt 00:01:43]} 22. gxf5 {[%emt 00:00:38]} Bh6 {[%clk
00:05:45]} {[%emt 00:00:52]} 23. Kh1 {[%clk 00:07:42]} {[%emt 00:04:21]} Kd7
{[%clk 00:04:15]} {[%emt 00:01:41]} 24. Rg1 {[%clk 00:03:25]} {[%emt 00:04:26]}
Kc7 {[%clk 00:00:43]} {[%emt 00:03:41]} 25. Raf1 {[%clk 00:01:53]} {[%emt
00:01:44]} Nc6 {[%clk 00:00:30]} {[%emt 00:00:23]} 26. fxe6 {[%clk 00:00:51]}
{[%emt 00:01:12]} Qxh4 {[%clk 00:00:14]} {[%emt 00:00:26]} 27. Rxf7+ {[%clk
00:00:57]} {[%emt 00:00:04]} Kc8 {[%clk 00:00:14]} {[%emt 00:00:09]} 28. Nf5
{[%clk 00:01:03]} {[%emt 00:00:04]} Qe4+ {[%emt 00:00:14]} 29. Qxe4 {[%emt
00:00:02]} 1-0